fUST/lending_fUST_20251030
["ID","MTS","AMOUNT","RATE_DAILY","PERIOD"]
[392657303,1761787683667,-500.0,0.0002852,4]
[392657304,1761787683698,-761.0,0.0002852,2]
[392657305,1761787683728,-500.0,0.0002852,4]
[392657306,1761787683761,-189.25175002,0.0002852,4]
[392657307,1761787683794,-500.0,0.0002852,4]
[392657308,1761787683826,-448.31773236,0.0002852,4]
[392657309,1761787683857,-102.87103524,0.0002852,4]
[392657310,1761787684023,-397.12896476,0.0002852,4]
[392657311,1761787684059,-283.49007433,0.00028521,2]
[392657312,1761787684092,-500.0,0.00028521,2]
[392657313,1761787684327,-273.31880158,0.00028521,2]
[392657314,1761787684363,-500.0,0.00028521,2]
[392657315,1761787684392,-500.0,0.00028521,2]
[392657316,1761787684420,-500.0,0.00028521,2]
[392657317,1761787684447,-500.0,0.00028521,2]
[392657318,1761787684475,-500.0,0.00028521,2]
[392657319,1761787684505,-500.0,0.00028521,2]
[392657320,1761787684532,-446.76325309,0.00028521,2]
[392657321,1761787684822,-198.60781248,0.00028521,2]
[392657322,1761787684832,-446.76325309,0.00028521,2]
[392657323,1761787686468,-53.23674691,0.00028521,2]
[392657324,1761787686499,-500.0,0.00028521,2]
[392657325,1761787686528,-500.0,0.00028521,2]
[392657326,1761787686558,-500.0,0.00028521,2]
[392657327,1761787686587,-500.0,0.00028521,2]
[392657328,1761787686615,-500.0,0.00028521,2]
[392657329,1761787686645,-500.0,0.00028521,2]
[392657330,1761787686674,-500.0,0.00028521,2]
[392657331,1761787686701,-500.0,0.00028521,2]
[392657332,1761787686730,-500.0,0.00028521,2]
[392657333,1761787686761,-393.53650618,0.00028521,2]
[392657334,1761787686912,-106.46349382,0.00028521,2]
[392657335,1761787689802,-500.0,0.0002852,4]
[392657336,1761787689833,-500.0,0.00028521,2]
[392657337,1761787689860,-500.0,0.00028521,2]
[392657338,1761787689890,-500.0,0.00028521,2]
[392657339,1761787689921,-500.0,0.00028521,2]
[392657340,1761787689950,-500.0,0.00028521,2]
[392657341,1761787689979,-500.0,0.00028521,2]
[392657342,1761787690008,-500.0,0.00028521,2]
[392657343,1761787690036,-500.0,0.00028521,2]
[392657344,1761787690066,-500.0,0.00028521,2]
[392657345,1761787690239,-500.0,0.00028521,2]
[392657346,1761787690269,-399.39903244,0.00028521,2]
[392657347,1761787690302,-500.0,0.00028521,2]
[392657348,1761787690332,-500.0,0.00028521,2]
[392657349,1761787690363,-500.0,0.00028521,2]
[392657350,1761787690393,-500.0,0.00028521,2]
[392657351,1761787690422,-500.0,0.00028521,2]
[392657352,1761787690451,-500.0,0.00028521,2]
[392657353,1761787690481,-500.0,0.00028521,2]
[392657354,1761787690511,-500.0,0.00028521,2]
[392657355,1761787690715,-0.01,0.00028521,2]
[392657356,1761787690728,-201.21193512,0.00028521,2]
[392657357,1761787692416,-298.77806488,0.00028521,2]
[392657358,1761787692446,-500.0,0.00028521,2]
[392657359,1761787692478,-500.0,0.00028521,2]
[392657360,1761787692507,-500.0,0.00028521,2]
[392657361,1761787692535,-500.0,0.00028521,2]
[392657362,1761787692563,-500.0,0.00028521,2]
[392657363,1761787692592,-500.0,0.00028521,2]
[392657364,1761787692620,-500.0,0.00028521,2]
[392657365,1761787692648,-500.0,0.00028521,2]
[392657366,1761787692676,-500.0,0.00028521,2]
[392657367,1761787692830,-402.45387024,0.00028521,2]
[392657371,1761787749099,-1652.713058,0.00026,30]
[392657373,1761787777503,510.193411,0.00013699,2]
[392657374,1761787777721,510.193411,0.00020187,2]
[392657375,1761787777952,510.193411,0.00026676,2]
[392657376,1761787779645,179.67658215,0.00024378,2]
[392657377,1761787786296,-999.0,0.00027302,2]
[392657378,1761787786323,-177.10931,0.00028219,2]
[392657379,1761787786350,-300.0,0.00028519,2]
[392657380,1761787786377,-500.0,0.0002852,4]
[392657381,1761787786404,-500.0,0.0002852,4]
[392657382,1761787786432,-500.0,0.0002852,4]
[392657383,1761787786459,-566.55,0.0002852,4]
[392657384,1761787786485,-320.91,0.0002852,4]
[392657385,1761787786512,-500.0,0.0002852,4]
[392657386,1761787786539,-391.72,0.0002852,4]
[392657387,1761787786684,-489.43138,0.0002852,4]
[392657390,1761787789335,-3563.17733878,0.00028477,4]
[392657391,1761787789363,-10.56862,0.0002852,4]
[392657392,1761787789390,-500.0,0.0002852,4]
[392657393,1761787789417,-500.0,0.0002852,4]
[392657394,1761787789443,-408.16,0.0002852,4]
[392657395,1761787789549,-36.19808244,0.0002852,4]
[392657396,1761787792187,-3563.11,0.00028496,4]
[392657397,1761787792214,-463.80191756,0.0002852,4]
[392657398,1761787792240,-500.0,0.0002852,4]
[392657399,1761787792266,-446.18616488,0.0002852,4]
[392657400,1761787792322,-53.81383512,0.0002852,4]
[392657401,1761787795222,-500.0,0.0002852,4]
[392657402,1761787795250,-500.0,0.0002852,4]
[392657403,1761787795278,-500.0,0.0002852,4]
[392657404,1761787795305,-211.28,0.0002852,4]
[392657405,1761787795332,-500.0,0.0002852,4]
[392657406,1761787795362,-97.54612976,0.00028521,2]
[392657407,1761787795391,-500.0,0.00028521,2]
[392657408,1761787795420,-500.0,0.00028521,2]
[392657409,1761787795448,-447.4124606,0.00028521,2]
[392657410,1761787795476,-500.0,0.00028521,2]
[392657411,1761787795504,-500.0,0.00028521,2]
[392657412,1761787795659,-487.53281928,0.00028521,4]
[392657413,1761787798391,-12.46718072,0.00028521,4]
[392657414,1761787798418,-500.0,0.00028521,4]
[392657415,1761787798444,-500.0,0.00028521,4]
[392657416,1761787798471,-282.81,0.00028521,4]
[392657417,1761787798498,-500.0,0.00028521,4]
[392657418,1761787798525,-500.0,0.00028521,4]
[392657419,1761787798553,-500.0,0.00028521,4]
[392657420,1761787798580,-500.0,0.00028521,4]
[392657421,1761787798608,-500.0,0.00028521,4]
[392657422,1761787798635,-500.0,0.00028521,4]
[392657423,1761787798662,-500.0,0.00028521,4]
[392657424,1761787798936,-409.45563856,0.00028521,3]
[392657425,1761787801291,-95.01436144,0.00028521,3]
[392657426,1761787801324,-500.0,0.00028521,4]
[392657427,1761787801356,-492.46,0.00028521,4]
[392657428,1761787801389,-500.0,0.00028521,4]
[392657429,1761787801424,-500.0,0.00028521,4]
[392657430,1761787801455,-500.0,0.00028521,4]
[392657431,1761787801494,-500.0,0.00028521,4]
[392657432,1761787801526,-500.0,0.00028521,4]
[392657433,1761787801556,-500.0,0.00028521,4]
[392657434,1761787801587,-500.0,0.00028521,4]
[392657435,1761787801619,-325.06127712,0.00028521,4]
[392657436,1761787801785,-174.93872288,0.00028521,4]
[392657437,1761787804373,-500.0,0.0002852,4]
[392657438,1761787804408,-300.0,0.0002852,2]
[392657439,1761787804440,-500.0,0.00028521,4]
[392657440,1761787804472,-500.0,0.00028521,4]
[392657441,1761787804506,-500.0,0.00028521,4]
[392657442,1761787804538,-500.0,0.00028521,4]
[392657443,1761787804571,-640.89,0.00028521,4]
[392657444,1761787804609,-500.0,0.00028521,4]
[392657445,1761787804644,-500.0,0.00028521,4]
[392657446,1761787804678,-525.68741993,0.00028521,4]
[392657447,1761787804883,-66.85516014,0.00028522,4]
[392657449,1761787807448,-200.0,0.0002852,2]
[392657450,1761787807478,-500.0,0.00028521,4]
[392657451,1761787807510,-380.536411,0.00028522,4]
[392657452,1761787807543,-500.0,0.00028522,4]
[392657453,1761787807575,-500.0,0.00028522,4]
[392657454,1761787807608,-500.0,0.00028522,4]
[392657455,1761787807638,-500.0,0.00028522,4]
[392657456,1761787807671,-603.5367119,0.00028522,4]
[392657457,1761787807702,-500.0,0.00028522,4]
[392657458,1761787807733,-500.0,0.00028522,4]
[392657459,1761787807766,-131.8637542,0.00028522,4]
[392657460,1761787807877,185.10937939,0.00024953,5]
[392657461,1761787807992,-368.1362458,0.00028522,4]
[392657462,1761787819414,-500.0,0.0002852,4]
[392657463,1761787819449,-500.0,0.0002852,4]
[392657464,1761787819482,-500.0,0.0002852,4]
[392657465,1761787819515,-383.0,0.0002852,2]
[392657466,1761787819561,-500.0,0.0002852,4]
[392657467,1761787819591,-500.0,0.00028521,4]
[392657468,1761787819624,-500.0,0.00028521,4]
[392657469,1761787819655,-500.0,0.00028521,4]
[392657470,1761787819685,-500.0,0.00028521,4]
[392657471,1761787819716,-500.0,0.00028521,4]
[392657472,1761787819899,-234.01,0.0002852,4]
[392657474,1761787822523,-457.61171911,0.00028422,2]
[392657475,1761787822553,-265.99,0.0002852,4]
[392657476,1761787822582,-500.0,0.00028521,4]
[392657477,1761787822611,-500.0,0.00028521,4]
[392657478,1761787822643,-500.0,0.00028521,4]
[392657479,1761787822673,-500.0,0.00028522,4]
[392657480,1761787822703,-500.0,0.00028522,4]
[392657481,1761787822732,-500.0,0.00028522,4]
[392657482,1761787822760,-500.0,0.00028522,4]
[392657483,1761787822800,-500.0,0.00028522,4]
[392657484,1761787822832,-52.80656178,0.00028522,4]
[392657485,1761787823008,-447.19343822,0.00028522,4]
[392657486,1761787828420,-500.0,0.0002852,4]
[392657487,1761787828447,-500.0,0.00028521,4]
[392657488,1761787828473,-500.0,0.00028521,4]
[392657489,1761787828500,-500.23049807,0.00028522,4]
[392657490,1761787828527,-500.0,0.00028522,4]
[392657491,1761787828554,-500.0,0.00028522,4]
[392657492,1761787828581,-500.0,0.00028522,4]
[392657493,1761787828728,-500.0,0.00028522,4]
[392657494,1761787828756,-500.0,0.00028522,4]
[392657495,1761787828784,-499.54900386,0.00028522,4]
[392657496,1761787828918,-0.45099614,0.00028521,4]
[392657497,1761787828972,150.0,0.00013102,30]
[392657510,1761787831611,-500.0,0.0002852,4]
[392657515,1761787831639,-499.54900386,0.00028521,4]
[392657520,1761787831668,-500.0,0.00028521,4]
[392657522,1761787831696,-0.45099614,0.00028522,4]
[392657523,1761787831724,-500.0,0.00028522,4]
[392657527,1761787831751,-500.0,0.00028522,4]
[392657529,1761787831778,-500.0,0.00028522,4]
[392657533,1761787831805,-500.0,0.00028522,4]
[392657537,1761787831835,-500.0,0.00028522,4]
[392657541,1761787831865,-500.0,0.00028522,4]
[392657545,1761787831895,-500.0,0.00028522,4]
[392657551,1761787832077,-0.01,0.00028521,4]
[392657552,1761787832096,-499.99,0.00028521,4]
[392657553,1761787832108,-500.0,0.00028522,4]
[392657554,1761787832117,-500.0,0.00028522,4]
[392657555,1761787832126,-45.73463915,0.00028522,4]
[392657556,1761787834552,-500.0,0.0002852,4]
[392657557,1761787834577,-512.38639624,0.00028521,4]
[392657558,1761787834603,-454.26536085,0.00028522,4]
[392657559,1761787834630,-500.0,0.00028522,2]
[392657560,1761787834656,-500.0,0.00028522,4]
[392657561,1761787834682,-500.0,0.00028522,4]
[392657562,1761787834708,-500.0,0.00028522,4]
[392657563,1761787834734,-500.0,0.00028522,4]
[392657564,1761787834760,-500.0,0.00028522,4]
[392657565,1761787834786,-500.0,0.00028522,4]
[392657566,1761787834938,-66.70648582,0.00028521,4]
[392657570,1761787837964,-433.29351418,0.00028521,4]
[392657572,1761787837974,-500.0,0.00028521,4]
[392657574,1761787837983,-500.0,0.00028521,4]
[392657576,1761787837995,-500.0,0.00028521,4]
[392657578,1761787838004,-500.0,0.00028522,4]
[392657580,1761787838013,-500.0,0.00028522,4]
[392657582,1761787838021,-500.0,0.00028522,4]
[392657584,1761787838031,-500.0,0.00028522,4]
[392657586,1761787838040,-500.0,0.00028522,4]
[392657588,1761787838049,-500.0,0.00028522,4]
[392657590,1761787838059,-500.0,0.00028522,4]
[392657592,1761787838068,-500.0,0.00028522,4]
[392657594,1761787838078,-500.0,0.00028522,4]
[392657596,1761787838088,-500.0,0.00028522,4]
[392657598,1761787838098,-500.0,0.00028522,4]
[392657600,1761787838107,-299.99738525,0.00028522,4]
[392657602,1761787838120,-500.0,0.00028522,4]
[392657604,1761787838131,-500.0,0.00028522,4]
[392657605,1761787838141,-381.12424304,0.00028522,4]
[392657608,1761787838154,-118.87575696,0.00028522,4]
[392657610,1761787838165,-500.0,0.00028522,4]
[392657612,1761787838175,-500.0,0.00028522,4]
[392657614,1761787838184,-500.0,0.00028522,2]
[392657615,1761787838195,-500.0,0.00028522,4]
[392657617,1761787838205,-500.0,0.00028522,4]
[392657619,1761787838214,-500.0,0.00028522,4]
[392657621,1761787838224,-500.0,0.00028522,4]
[392657623,1761787838233,-500.0,0.00028522,4]
[392657625,1761787838244,-500.0,0.00028522,4]
[392657627,1761787838253,-500.0,0.00028522,4]
[392657629,1761787838263,-500.0,0.00028522,4]
[392657631,1761787838273,-500.0,0.00028522,4]
[392657632,1761787838283,-500.0,0.00028522,4]
[392657633,1761787838292,-500.0,0.00028522,4]
[392657634,1761787838302,-500.0,0.00028522,4]
[392657635,1761787838312,-500.0,0.00028522,4]
[392657636,1761787838322,-450.0,0.00028522,4]
[392657637,1761787838332,-500.0,0.00028522,4]
[392657638,1761787838343,-500.0,0.00028522,4]
[392657639,1761787838352,-500.0,0.00028522,4]
[392657640,1761787838362,-500.0,0.00028522,4]
[392657641,1761787838374,-500.0,0.00028522,4]
[392657642,1761787838384,-500.0,0.00028522,4]
[392657643,1761787838395,-500.0,0.00028522,4]
[392657644,1761787838404,-500.0,0.00028522,4]
[392657645,1761787838414,-424.21632357,0.00028522,4]
[392657646,1761787838426,-75.78367643,0.00028522,4]
[392657647,1761787838436,-500.0,0.00028522,4]
[392657648,1761787838445,-500.0,0.00028522,4]
[392657649,1761787838455,-500.0,0.00028522,4]
[392657650,1761787838464,-500.0,0.00028522,4]
[392657651,1761787838474,-265.36695019,0.00028522,4]
[392657652,1761787838483,-500.0,0.00028522,4]
[392657653,1761787838493,-500.0,0.00028522,4]
[392657654,1761787838503,-500.0,0.00028522,4]
[392657655,1761787838512,-500.0,0.00028522,4]
[392657656,1761787838626,-500.0,0.00028522,4]
[392657657,1761787838636,-500.0,0.00028522,4]
[392657658,1761787838646,-502.94419266,0.00028522,4]
[392657659,1761787838655,-500.0,0.00028522,4]
[392657660,1761787838665,-500.0,0.00028522,4]
[392657661,1761787838675,-500.0,0.00028522,4]
[392657662,1761787838684,-500.0,0.00028522,4]
[392657663,1761787838694,-502.74927094,0.00028522,4]
[392657664,1761787838703,-500.0,0.00028522,4]
[392657665,1761787838713,-500.0,0.00028522,4]
[392657666,1761787838722,-217.19714087,0.00028522,4]
[392657667,1761787838732,-500.0,0.00028522,4]
[392657668,1761787838741,-7690.5888625,0.00028529,2]
[392657669,1761787838751,-294.90535495,0.00028567,2]
[392657670,1761787838760,-500.0,0.00028573,5]
[392657671,1761787838770,-500.0,0.00028573,5]
[392657672,1761787838779,-637.80010771,0.00028573,2]
[392657673,1761787838790,-500.0,0.00028573,5]
[392657674,1761787838799,-500.0,0.00028573,5]
[392657675,1761787838808,-3563.11,0.00028577,4]
[392657676,1761787838817,-7047.76619075,0.00028578,2]
[392657677,1761787838827,-3563.11,0.00028578,4]
[392657678,1761787838837,-478.42540323,0.00028582,2]
[392657679,1761787838846,-500.0,0.00028582,2]
[392657680,1761787838855,-500.0,0.00028582,2]
[392657681,1761787838864,-500.0,0.00028582,2]
[392657682,1761787838874,-500.0,0.00028582,2]
[392657683,1761787838884,-500.0,0.00028582,2]
[392657684,1761787838894,-500.0,0.00028582,2]
[392657685,1761787838903,-540.19815178,0.00028582,2]
[392657686,1761787838912,-500.0,0.00028582,2]
[392657687,1761787838923,-368.0,0.00028584,4]
[392657688,1761787838934,-500.0,0.00028584,4]
[392657689,1761787838944,-500.0,0.00028584,4]
[392657690,1761787838954,-500.0,0.00028584,4]
[392657691,1761787838963,-500.0,0.00028584,4]
[392657692,1761787838973,-500.0,0.00028584,4]
[392657693,1761787838982,-584.99383864,0.00028584,4]
[392657694,1761787838992,-500.0,0.00028584,4]
[392657695,1761787839001,-500.0,0.00028584,4]
[392657696,1761787839010,-500.0,0.00028584,4]
[392657697,1761787839020,-500.0,0.00028584,4]
[392657698,1761787839029,-500.0,0.00028584,4]
[392657699,1761787839039,-500.0,0.00028584,4]
[392657700,1761787839047,-500.0,0.00028584,4]
[392657701,1761787839058,-500.0,0.00028584,4]
[392657702,1761787839068,-506.85,0.00028584,4]
[392657703,1761787839077,-500.0,0.00028584,4]
[392657704,1761787839087,-500.0,0.00028584,4]
[392657705,1761787839097,-500.0,0.00028584,4]
[392657706,1761787839106,-151.0,0.00028585,2]
[392657707,1761787839115,-151.0,0.00028585,2]
[392657708,1761787839125,-151.0,0.00028585,2]
[392657709,1761787839135,-151.0,0.00028585,2]
[392657710,1761787839145,-151.0,0.00028585,2]
[392657711,1761787839154,-151.0,0.00028585,2]
[392657712,1761787839165,-151.0,0.00028586,2]
[392657713,1761787839177,-151.0,0.00028586,2]
[392657714,1761787839186,-151.0,0.00028586,2]
[392657715,1761787839195,-151.0,0.00028586,2]
[392657716,1761787839204,-151.0,0.00028586,2]
[392657717,1761787839214,-213.6599707,0.00028586,2]
[392657718,1761787839223,-151.0,0.00028586,2]
[392657719,1761787839233,-151.0,0.00028586,2]
[392657720,1761787839243,-151.0,0.00028586,2]
[392657721,1761787839252,-151.0,0.00028586,2]
[392657722,1761787839261,-500.0,0.00028586,2]
[392657723,1761787839270,-207.80261313,0.00028586,2]
[392657724,1761787839279,-151.0,0.00028586,2]
[392657725,1761787839289,-151.0,0.00028586,2]
[392657726,1761787839298,-500.0,0.00028586,2]
[392657727,1761787839307,-151.0,0.00028586,2]
[392657728,1761787839317,-151.0,0.00028586,2]
[392657729,1761787839326,-1999.0,0.00028586,2]
[392657730,1761787839335,-151.0,0.00028587,31]
[392657731,1761787839345,-151.0,0.00028587,31]
[392657732,1761787839355,-151.0,0.00028587,31]
[392657733,1761787839365,-151.0,0.00028587,31]
[392657734,1761787839376,-151.0,0.00028587,31]
[392657735,1761787839386,-151.0,0.00028587,31]
[392657736,1761787839396,-10689.33,0.00028587,4]
[392657737,1761787839406,-168.0,0.00028614,7]
[392657738,1761787839415,-301.003,0.0002864,2]
[392657739,1761787839424,-151.0,0.0002864,2]
[392657740,1761787839433,-151.0,0.0002864,2]
[392657741,1761787839443,-151.0,0.0002864,2]
[392657742,1761787839451,-151.0,0.00028641,2]
[392657743,1761787839461,-151.0,0.00028641,2]
[392657744,1761787839470,-151.0,0.00028641,2]
[392657745,1761787839479,-151.0,0.00028641,2]
[392657746,1761787839488,-151.0,0.00028641,2]
[392657747,1761787839507,-151.0,0.00028641,2]
[392657748,1761787839519,-151.0,0.00028641,2]
[392657749,1761787839528,-151.0,0.00028641,2]
[392657750,1761787839537,-500.0,0.00028641,2]
[392657751,1761787839546,-151.0,0.00028641,2]
[392657752,1761787839556,-151.0,0.00028641,2]
[392657753,1761787839566,-500.0,0.00028641,2]
[392657754,1761787839576,-151.0,0.00028641,2]
[392657755,1761787839586,-151.0,0.00028641,2]
[392657756,1761787839597,-300.86,0.00028685,10]
[392657757,1761787839606,-250.71,0.00028686,10]
[392657758,1761787839621,-166.66,0.00028695,2]
[392657759,1761787839632,-198.0,0.00028695,2]
[392657760,1761787839642,-198.0,0.00028695,2]
[392657761,1761787839653,-5147.66337722,0.00028695,2]
[392657762,1761787839662,-198.0,0.00028696,2]
[392657763,1761787839673,-198.0,0.00028696,2]
[392657764,1761787839682,-198.0,0.00028696,2]
[392657765,1761787839692,-198.0,0.00028696,2]
[392657766,1761787839702,-198.0,0.00028696,2]
[392657767,1761787839712,-198.0,0.00028696,2]
[392657768,1761787839723,-198.0,0.00028696,2]
[392657769,1761787839732,-198.0,0.00028696,2]
[392657770,1761787839741,-500.0,0.00028696,2]
[392657771,1761787839750,-198.0,0.00028696,2]
[392657772,1761787839760,-198.0,0.00028696,2]
[392657773,1761787839770,-500.0,0.00028696,2]
[392657775,1761787839779,-198.0,0.00028696,2]
[392657777,1761787839788,-198.0,0.00028696,2]
[392657778,1761787839797,-1723.0,0.000287,2]
[392657780,1761787839808,-5147.66337721,0.00028718,2]
[392657782,1761787839817,-5147.66337721,0.00028742,2]
[392657783,1761787839826,-500.0,0.0002875,2]
[392657785,1761787839835,-500.0,0.0002875,2]
[392657786,1761787839844,-5147.66337721,0.00028765,2]
[392657788,1761787839853,-7047.76619075,0.00028767,2]
[392657790,1761787839862,-500.0,0.00028773,5]
[392657791,1761787839876,-500.0,0.00028773,5]
[392657793,1761787839886,-500.0,0.00028773,5]
[392657794,1761787839896,-500.0,0.00028773,5]
[392657795,1761787839906,-500.0,0.00028773,5]
[392657796,1761787839915,-500.0,0.00028773,5]
[392657797,1761787839927,-500.0,0.00028773,5]
[392657798,1761787839937,-500.0,0.00028773,5]
[392657799,1761787839946,-500.32064751,0.00028773,5]
[392657800,1761787839956,-500.0,0.00028773,5]
[392657801,1761787839966,-500.0,0.00028773,5]
[392657803,1761787839976,-500.0,0.00028773,5]
[392657805,1761787839985,-500.13909923,0.00028773,5]
[392657807,1761787839994,-162.19792218,0.00028773,5]
[392657809,1761787840005,-500.0,0.00028773,5]
[392657811,1761787840015,-509.81317749,0.00028773,5]
[392657813,1761787840024,-500.0,0.00028773,5]
[392657815,1761787840034,-500.0,0.00028773,5]
[392657817,1761787840043,-500.0,0.00028773,5]
[392657819,1761787840052,-500.0,0.00028773,5]
[392657821,1761787840061,-502.13183499,0.00028773,5]
[392657823,1761787840071,-600.0,0.00028773,2]
[392657825,1761787840080,-500.0,0.00028773,5]
[392657827,1761787840089,-501.28183579,0.00028773,5]
[392657829,1761787840098,-501.62048156,0.00028773,5]
[392657831,1761787840108,-503.02224019,0.00028773,5]
[392657833,1761787840118,-500.50808949,0.00028773,5]
[392657835,1761787840127,-501.86225817,0.00028773,5]
[392657837,1761787840137,-11235.98957288,0.00028777,2]
[392657839,1761787840146,-168.0,0.00028781,2]
[392657841,1761787840154,-14095.5323815,0.00028786,2]
[392657843,1761787840163,-479.6,0.00028786,3]
[392657845,1761787840172,-5147.66337721,0.00028788,2]
[392657847,1761787840182,-500.0,0.00028794,4]
[392657849,1761787840191,-300.08,0.00028794,4]
[392657851,1761787840200,-500.0,0.00028794,4]
[392657853,1761787840209,-500.0,0.00028794,4]
[392657855,1761787840218,-500.0,0.00028794,4]
[392657856,1761787840228,-427.69,0.00028794,4]
[392657858,1761787840237,-500.0,0.00028794,4]
[392657860,1761787840247,-500.0,0.00028794,4]
[392657862,1761787840257,-500.0,0.00028794,4]
[392657864,1761787840267,-500.0,0.00028794,4]
[392657866,1761787840276,-500.0,0.00028794,4]
[392657868,1761787840286,-500.0,0.00028794,4]
[392657870,1761787840295,-500.0,0.00028794,4]
[392657872,1761787840304,-204.83,0.00028794,4]
[392657874,1761787840314,-589.5,0.00028794,4]
[392657876,1761787840323,-500.0,0.00028794,4]
[392657878,1761787840333,-500.0,0.00028794,4]
[392657880,1761787840342,-435.75776159,0.00028794,4]
[392657882,1761787840351,-616.54192107,0.00028794,4]
[392657884,1761787840360,-629.47813284,0.00028794,4]
[392657886,1761787840372,-500.0,0.00028794,4]
[392657888,1761787840380,-500.0,0.00028794,4]
[392657890,1761787840390,-500.0,0.00028794,4]
[392657892,1761787840399,-395.43,0.00028795,4]
[392657894,1761787840408,-500.0,0.00028795,4]
[392657896,1761787840417,-500.0,0.00028795,4]
[392657898,1761787840427,-500.0,0.00028795,4]
[392657900,1761787840436,-500.0,0.00028795,4]
[392657902,1761787840445,-500.0,0.00028795,4]
[392657904,1761787840455,-251.94,0.00028795,4]
[392657905,1761787840464,-504.47,0.00028795,3]
[392657907,1761787840473,-500.0,0.00028795,4]
[392657909,1761787840482,-500.0,0.00028795,4]
[392657911,1761787840491,-500.0,0.00028795,4]
[392657913,1761787840499,-500.0,0.00028795,4]
[392657915,1761787840508,-500.0,0.00028795,4]
[392657916,1761787840518,-500.0,0.00028795,4]
[392657917,1761787840527,-153.32,0.00028795,4]
[392657918,1761787840536,-265.65,0.00028795,4]
[392657919,1761787840545,-500.0,0.00028795,4]
[392657920,1761787840554,-500.0,0.00028795,4]
[392657921,1761787840563,-314.97,0.00028795,4]
[392657922,1761787840572,-540.0,0.00028795,4]
[392657923,1761787840582,-500.0,0.00028795,4]
[392657924,1761787840591,-500.0,0.00028795,4]
[392657925,1761787840600,-500.0,0.00028795,4]
[392657926,1761787840609,-502.58619436,0.00028795,4]
[392657927,1761787840618,-500.0,0.00028795,4]
[392657928,1761787840627,-503.15981647,0.00028795,4]
[392657929,1761787840636,-252.30934803,0.00028795,4]
[392657930,1761787840646,-500.0,0.00028795,4]
[392657931,1761787840660,-502.36726927,0.00028795,4]
[392657932,1761787840680,-196.6141533,0.00028795,4]
[392657933,1761787840702,-503.46151029,0.00028795,4]
[392657934,1761787840711,-500.0,0.00028795,4]
[392657935,1761787840719,-500.0,0.00028795,4]
[392657936,1761787840728,-501.05546131,0.00028795,4]
[392657937,1761787840737,-500.0,0.00028795,4]
[392657938,1761787840746,-500.70595639,0.00028795,4]
[392657939,1761787840755,-500.39907961,0.00028795,4]
[392657940,1761787840764,-500.0,0.00028796,4]
[392657941,1761787840773,-500.0,0.00028796,4]
[392657942,1761787840782,-500.0,0.00028796,4]
[392657943,1761787840792,-500.0,0.00028796,4]
[392657944,1761787840801,-500.0,0.00028796,4]
[392657945,1761787840810,-500.0,0.00028796,4]
[392657946,1761787840819,-500.0,0.00028796,4]
[392657947,1761787840828,-500.0,0.00028796,4]
[392657948,1761787840838,-500.0,0.00028796,4]
[392657949,1761787840847,-500.0,0.00028796,4]